[Event "Titled Tuesday Blitz June 14 Late 2022"]
[White "Sibilio, Mario"]
[Black "Akrakan"]
[WhiteFideId "800422"]
[WhiteElo "2296"]
[BlackElo "2166"]
[Result "1-0"]
[Round "07"]
[TimeControl "180+1"]
[Date "2022.06.15"]
[WhiteClock "0:00:08"]
[BlackClock "0:00:55"]

1. d4 {[%clk 0:02:54]}  d5 {[%clk 0:02:59]} 2. c4 {[%clk 0:02:53]}  e6 {[%clk 0:02:59]} 3. Nf3 {[%clk 0:02:53]}  Nf6 {[%clk 0:03:00]} 4. Nc3 {[%clk 0:02:53]}  Be7 {[%clk 0:02:59]} 5. g3 {[%clk 0:02:46]}  O-O {[%clk 0:02:59]} 6. Bg2 {[%clk 0:02:46]}  c5 {[%clk 0:02:59]} 7. cxd5 {[%clk 0:02:39]}  exd5 {[%clk 0:02:59]} 8. Bg5 {[%clk 0:02:31]}  cxd4 {[%clk 0:02:56]} 9. Nxd4 {[%clk 0:02:30]}  Be6 {[%clk 0:02:56]} 10. Rc1 {[%clk 0:02:27]}  Nc6 {[%clk 0:02:56]} 11. O-O {[%clk 0:02:23]}  Rc8 {[%clk 0:02:56]} 12. e3 {[%clk 0:02:14]}  Qd7 {[%clk 0:02:55]} 13. Na4 {[%clk 0:02:04]}  b6 {[%clk 0:02:48]} 14. Nxc6 {[%clk 0:01:43]}  Rxc6 {[%clk 0:02:46]} 15. Rxc6 {[%clk 0:01:42]}  Qxc6 {[%clk 0:02:47]} 16. Nc3 {[%clk 0:01:42]}  Rd8 {[%clk 0:02:44]} 17. Qb3 {[%clk 0:01:37]}  h6 {[%clk 0:02:37]} 18. Bf4 {[%clk 0:01:26]}  Qc4 {[%clk 0:02:28]} 19. Nb5 {[%clk 0:01:10]}  Qxb3 {[%clk 0:02:13]} 20. axb3 {[%clk 0:01:09]}  a6 {[%clk 0:02:14]} 21. Nd4 {[%clk 0:00:48]}  Rc8 {[%clk 0:02:10]} 22. Rd1 {[%clk 0:00:45]}  Kf8 {[%clk 0:01:52]} 23. Bf1 {[%clk 0:00:38]}  a5 {[%clk 0:01:50]} 24. Bd3 {[%clk 0:00:35]}  Bc5 {[%clk 0:01:44]} 25. f3 {[%clk 0:00:33]}  Ke7 {[%clk 0:01:42]} 26. g4 {[%clk 0:00:30]}  Nd7 {[%clk 0:01:32]} 27. Kf2 {[%clk 0:00:28]}  Nb8 {[%clk 0:01:27]} 28. Bb5 {[%clk 0:00:25]}  Nd7 {[%clk 0:01:25]} 29. Rd2 {[%clk 0:00:18]}  Bxd4 {[%clk 0:01:22]} 30. exd4 {[%clk 0:00:16]}  Nf6 {[%clk 0:01:21]} 31. h3 {[%clk 0:00:15]}  Ne8 {[%clk 0:01:21]} 32. Ba6 {[%clk 0:00:14]}  Ra8 {[%clk 0:01:18]} 33. Bb7 {[%clk 0:00:13]}  Ra7 {[%clk 0:01:19]} 34. Bc6 {[%clk 0:00:12]}  Nd6 {[%clk 0:01:19]} 35. Re2 {[%clk 0:00:10]}  g5 {[%clk 0:01:11]} 36. Bg3 {[%clk 0:00:09]}  Rc7 {[%clk 0:01:07]} 37. Ba4 {[%clk 0:00:09]}  b5 {[%clk 0:01:05]} 38. Bxd6+ {[%clk 0:00:08]}  Kxd6 {[%clk 0:01:05]} 39. Bxb5 {[%clk 0:00:08]}  Rb7 {[%clk 0:01:05]} 40. Ba4 {[%clk 0:00:08]}  Rb6 {[%clk 0:01:05]} 41. Rc2 {[%clk 0:00:08]}  Bd7 {[%clk 0:01:02]} 42. Bxd7 {[%clk 0:00:07]}  Kxd7 {[%clk 0:01:02]} 43. Rc5 {[%clk 0:00:08]}  Rxb3 {[%clk 0:01:03]} 44. Rxd5+ {[%clk 0:00:07]}  Ke6 {[%clk 0:01:03]} 45. Rxa5 {[%clk 0:00:07]}  Rxb2+ {[%clk 0:01:04]} 46. Kg3 {[%clk 0:00:07]}  Rd2 {[%clk 0:01:04]} 47. Ra6+ {[%clk 0:00:07]}  Kd5 {[%clk 0:01:04]} 48. Rxh6 {[%clk 0:00:07]}  Rxd4 {[%clk 0:01:03]} 49. Rf6 {[%clk 0:00:07]}  Ke5 {[%clk 0:01:00]} 50. Rxf7 {[%clk 0:00:06]}  Ke6 {[%clk 0:00:59]} 51. Rf5 {[%clk 0:00:06]}  Rd3 {[%clk 0:00:57]} 52. Rxg5 {[%clk 0:00:06]}  Kf6 {[%clk 0:00:57]} 53. h4 {[%clk 0:00:06]}  Ra3 {[%clk 0:00:57]} 54. Rf5+ {[%clk 0:00:07]}  Kg6 {[%clk 0:00:57]} 55. h5+ {[%clk 0:00:07]}  Kg7 {[%clk 0:00:57]} 56. Kh4 {[%clk 0:00:08]}  Ra4 {[%clk 0:00:57]} 57. Kg5 {[%clk 0:00:08]}  Rb4 {[%clk 0:00:57]} 58. h6+ {[%clk 0:00:08]}  Kh7 {[%clk 0:00:57]} 59. Rf7+ {[%clk 0:00:08]}  Kg8 {[%clk 0:00:56]} 60. Kg6 {[%clk 0:00:08]}  Rb6+ {[%clk 0:00:57]} 61. Rf6 {[%clk 0:00:08]}  Rb7 {[%clk 0:00:57]} 62. h7+ {[%clk 0:00:07]}  Rxh7 {[%clk 0:00:54]} 63. Rf8+ {[%clk 0:00:07]}  Kxf8 {[%clk 0:00:54]} 64. Kxh7 {[%clk 0:00:07]}  Kf7 {[%clk 0:00:55]} 65. g5 {[%clk 0:00:08]} 1-0


[Site "https://www.chess.com"]

[Event "Titled Tuesday Blitz June 14 Late 2022"]
[White "Sowa, Ryan"]
[Black "Buscar, Michael"]
[WhiteFideId "30901693"]
[BlackFideId "2603616"]
[WhiteElo "2564"]
[BlackElo "2010"]
[Result "1/2-1/2"]
[Round "07"]
[TimeControl "180+1"]
[Date "2022.06.15"]
[WhiteClock "0:00:10"]
[BlackClock "0:00:13"]

1. Nf3 {[%clk 0:03:00]}  d5 {[%clk 0:02:58]} 2. d4 {[%clk 0:03:00]}  Nf6 {[%clk 0:02:57]} 3. c4 {[%clk 0:02:59]}  e6 {[%clk 0:02:57]} 4. g3 {[%clk 0:02:59]}  c5 {[%clk 0:02:56]} 5. Bg2 {[%clk 0:02:56]}  Nc6 {[%clk 0:02:54]} 6. O-O {[%clk 0:02:56]}  Be7 {[%clk 0:02:52]} 7. cxd5 {[%clk 0:02:51]}  exd5 {[%clk 0:02:52]} 8. dxc5 {[%clk 0:02:48]}  Bxc5 {[%clk 0:02:53]} 9. b3 {[%clk 0:02:49]}  O-O {[%clk 0:02:53]} 10. Bb2 {[%clk 0:02:49]}  Be6 {[%clk 0:02:51]} 11. Nc3 {[%clk 0:02:50]}  Ne4 {[%clk 0:02:47]} 12. Nb5 {[%clk 0:02:48]}  Qb6 {[%clk 0:02:36]} 13. Nbd4 {[%clk 0:02:47]}  Rfd8 {[%clk 0:02:32]} 14. Rc1 {[%clk 0:02:46]}  Bg4 {[%clk 0:02:24]} 15. e3 {[%clk 0:02:28]}  a5 {[%clk 0:02:20]} 16. h3 {[%clk 0:02:28]}  Bh5 {[%clk 0:02:18]} 17. g4 {[%clk 0:02:23]}  Bg6 {[%clk 0:02:16]} 18. Nh4 {[%clk 0:02:24]}  a4 {[%clk 0:02:15]} 19. Nxc6 {[%clk 0:02:20]}  bxc6 {[%clk 0:02:09]} 20. Nxg6 {[%clk 0:02:20]}  hxg6 {[%clk 0:02:08]} 21. Qc2 {[%clk 0:02:20]}  Ra5 {[%clk 0:01:57]} 22. Bxe4 {[%clk 0:02:06]}  axb3 {[%clk 0:01:49]} 23. axb3 {[%clk 0:02:03]}  dxe4 {[%clk 0:01:48]} 24. Bc3 {[%clk 0:01:55]}  Rb5 {[%clk 0:01:42]} 25. Qxe4 {[%clk 0:01:56]}  Rxb3 {[%clk 0:01:40]} 26. Bxg7 {[%clk 0:01:56]}  Bxe3 {[%clk 0:01:34]} 27. Rxc6 {[%clk 0:01:56]}  Qa7 {[%clk 0:01:21]} 28. Bf6 {[%clk 0:01:37]}  Bxf2+ {[%clk 0:01:09]} 29. Rxf2 {[%clk 0:01:33]}  Rg3+ {[%clk 0:01:09]} 30. Kf1 {[%clk 0:01:27]}  Rd1+ {[%clk 0:01:09]} 31. Ke2 {[%clk 0:01:02]}  Re3+ {[%clk 0:00:15]} 32. Qxe3 {[%clk 0:00:55]}  Re1+ {[%clk 0:00:15]} 33. Kxe1 {[%clk 0:00:48]}  Qxe3+ {[%clk 0:00:16]} 34. Re2 {[%clk 0:00:39]}  Qg3+ {[%clk 0:00:14]} 35. Kd2 {[%clk 0:00:32]}  Qf4+ {[%clk 0:00:14]} 36. Kc2 {[%clk 0:00:33]}  Kh7 {[%clk 0:00:14]} 37. Rc8 {[%clk 0:00:29]}  Qa4+ {[%clk 0:00:13]} 38. Kd2 {[%clk 0:00:22]}  Qa5+ {[%clk 0:00:12]} 39. Rc3 {[%clk 0:00:19]}  Qa2+ {[%clk 0:00:10]} 40. Rc2 {[%clk 0:00:19]}  Qd5+ {[%clk 0:00:10]} 41. Kc1 {[%clk 0:00:19]}  Qh1+ {[%clk 0:00:10]} 42. Kb2 {[%clk 0:00:19]}  Qb7+ {[%clk 0:00:10]} 43. Ka1 {[%clk 0:00:19]}  Qa6+ {[%clk 0:00:10]} 44. Kb1 {[%clk 0:00:18]}  Qxf6 {[%clk 0:00:10]} 45. Kc1 {[%clk 0:00:15]}  Qf4+ {[%clk 0:00:10]} 46. Kb2 {[%clk 0:00:15]}  Qb8+ {[%clk 0:00:09]} 47. Kc3 {[%clk 0:00:15]}  Qg3+ {[%clk 0:00:09]} 48. Kd4 {[%clk 0:00:15]}  Kg7 {[%clk 0:00:09]} 49. Re3 {[%clk 0:00:15]}  Qf4+ {[%clk 0:00:09]} 50. Kd3 {[%clk 0:00:15]}  Qd6+ {[%clk 0:00:09]} 51. Ke2 {[%clk 0:00:15]}  Qh2+ {[%clk 0:00:09]} 52. Kd1 {[%clk 0:00:16]}  Qg1+ {[%clk 0:00:09]} 53. Kd2 {[%clk 0:00:17]}  Qf2+ {[%clk 0:00:09]} 54. Kd3 {[%clk 0:00:17]}  Qf1+ {[%clk 0:00:08]} 55. Rce2 {[%clk 0:00:18]}  Qd1+ {[%clk 0:00:08]} 56. Ke4 {[%clk 0:00:18]}  Qd6 {[%clk 0:00:07]} 57. Kf3 {[%clk 0:00:19]}  Qd5+ {[%clk 0:00:07]} 58. Kf2 {[%clk 0:00:20]}  Qd4 {[%clk 0:00:08]} 59. Kg2 {[%clk 0:00:20]}  Qf4 {[%clk 0:00:08]} 60. Rf3 {[%clk 0:00:20]}  Qd4 {[%clk 0:00:07]} 61. Ref2 {[%clk 0:00:21]}  Qd5 {[%clk 0:00:08]} 62. Kh2 {[%clk 0:00:21]}  Qd6+ {[%clk 0:00:08]} 63. Kg1 {[%clk 0:00:22]}  Qd1+ {[%clk 0:00:08]} 64. Kh2 {[%clk 0:00:21]}  Qd5 {[%clk 0:00:09]} 65. Rxf7+ {[%clk 0:00:21]}  Kh6 {[%clk 0:00:09]} 66. R7f3 {[%clk 0:00:20]}  Qe5+ {[%clk 0:00:09]} 67. Kg2 {[%clk 0:00:20]}  Qe4 {[%clk 0:00:10]} 68. Kg3 {[%clk 0:00:20]}  Qe5+ {[%clk 0:00:10]} 69. Kg2 {[%clk 0:00:21]}  Kg5 {[%clk 0:00:10]} 70. Rc2 {[%clk 0:00:21]}  Qe4 {[%clk 0:00:10]} 71. Rc3 {[%clk 0:00:21]}  Kh4 {[%clk 0:00:10]} 72. Kf2 {[%clk 0:00:21]}  Qd4+ {[%clk 0:00:10]} 73. Ke2 {[%clk 0:00:20]}  Qe4+ {[%clk 0:00:10]} 74. Kd2 {[%clk 0:00:19]}  Qd4+ {[%clk 0:00:11]} 75. Rcd3 {[%clk 0:00:20]}  Qb2+ {[%clk 0:00:11]} 76. Ke3 {[%clk 0:00:21]}  Qe5+ {[%clk 0:00:12]} 77. Kf2 {[%clk 0:00:20]}  Qb2+ {[%clk 0:00:12]} 78. Kg1 {[%clk 0:00:20]}  Qb1+ {[%clk 0:00:11]} 79. Kg2 {[%clk 0:00:20]}  Qb2+ {[%clk 0:00:12]} 80. Rf2 {[%clk 0:00:20]}  Qe5 {[%clk 0:00:12]} 81. Rdf3 {[%clk 0:00:20]}  Qe4 {[%clk 0:00:13]} 82. Kf1 {[%clk 0:00:19]}  Qb1+ {[%clk 0:00:13]} 83. Ke2 {[%clk 0:00:20]}  Qe4+ {[%clk 0:00:13]} 84. Kd2 {[%clk 0:00:20]}  Qd4+ {[%clk 0:00:13]} 85. Kc2 {[%clk 0:00:20]}  Qc4+ {[%clk 0:00:14]} 86. Kd1 {[%clk 0:00:20]}  Qd4+ {[%clk 0:00:14]} 87. Rd2 {[%clk 0:00:20]}  Qc4 {[%clk 0:00:13]} 88. Ke1 {[%clk 0:00:20]}  Qe4+ {[%clk 0:00:13]} 89. Kf2 {[%clk 0:00:20]}  Qe5 {[%clk 0:00:13]} 90. g5 {[%clk 0:00:14]}  Qh2+ {[%clk 0:00:12]} 91. Ke3 {[%clk 0:00:14]}  Qg1+ {[%clk 0:00:12]} 92. Kd3 {[%clk 0:00:13]}  Kxg5 {[%clk 0:00:11]} 93. Rdf2 {[%clk 0:00:12]}  Qd1+ {[%clk 0:00:11]} 94. Ke4 {[%clk 0:00:12]}  Qb1+ {[%clk 0:00:11]} 95. Ke3 {[%clk 0:00:12]}  Qb3+ {[%clk 0:00:11]} 96. Ke2 {[%clk 0:00:13]}  Qc2+ {[%clk 0:00:12]} 97. Kf1 {[%clk 0:00:13]}  Qd1+ {[%clk 0:00:13]} 98. Kg2 {[%clk 0:00:14]}  Qc1 {[%clk 0:00:12]} 99. Rg3+ {[%clk 0:00:14]}  Kh6 {[%clk 0:00:12]} 100. Rg4 {[%clk 0:00:14]}  Qc6+ {[%clk 0:00:12]} 101. Kh2 {[%clk 0:00:14]}  Qd6+ {[%clk 0:00:12]} 102. Kh1 {[%clk 0:00:14]}  Qd5+ {[%clk 0:00:12]} 103. Rfg2 {[%clk 0:00:14]}  Qf5 {[%clk 0:00:11]} 104. Kh2 {[%clk 0:00:15]}  Qe5+ {[%clk 0:00:10]} 105. Kg1 {[%clk 0:00:15]}  Qe1+ {[%clk 0:00:11]} 106. Kh2 {[%clk 0:00:15]}  Qe5+ {[%clk 0:00:11]} 107. R4g3 {[%clk 0:00:15]}  Kh5 {[%clk 0:00:12]} 108. Kh1 {[%clk 0:00:15]}  Qe1+ {[%clk 0:00:12]} 109. Rg1 {[%clk 0:00:15]}  Qe4+ {[%clk 0:00:12]} 110. Kh2 {[%clk 0:00:15]}  Qe5 {[%clk 0:00:13]} 111. Kg2 {[%clk 0:00:14]}  Qe4+ {[%clk 0:00:13]} 112. Kf2 {[%clk 0:00:14]}  Qf4+ {[%clk 0:00:13]} 113. Rf3 {[%clk 0:00:14]}  Qd4+ {[%clk 0:00:13]} 114. Kg3 {[%clk 0:00:15]}  Qd6+ {[%clk 0:00:13]} 115. Kg2 {[%clk 0:00:15]}  Qd5 {[%clk 0:00:13]} 116. Re1 {[%clk 0:00:13]}  g5 {[%clk 0:00:13]} 117. Kf2 {[%clk 0:00:08]}  Qd2+ {[%clk 0:00:13]} 118. Re2 {[%clk 0:00:08]}  Qd4+ {[%clk 0:00:13]} 119. Kf1 {[%clk 0:00:07]}  Qc4 {[%clk 0:00:13]} 120. Kf2 {[%clk 0:00:07]}  Qd4+ {[%clk 0:00:14]} 121. Rfe3 {[%clk 0:00:06]}  Qf4+ {[%clk 0:00:14]} 122. Kg2 {[%clk 0:00:07]}  Qf5 {[%clk 0:00:13]} 123. Rg3 {[%clk 0:00:06]}  Qd5+ {[%clk 0:00:13]} 124. Kh2 {[%clk 0:00:07]}  Qb5 {[%clk 0:00:13]} 125. Reg2 {[%clk 0:00:07]}  Qe5 {[%clk 0:00:13]} 126. Kh1 {[%clk 0:00:08]}  Qe1+ {[%clk 0:00:13]} 127. Kh2 {[%clk 0:00:08]}  Qe5 {[%clk 0:00:13]} 128. Rc2 {[%clk 0:00:07]}  Kh4 {[%clk 0:00:11]} 129. Rc4+ {[%clk 0:00:07]}  Kh5 {[%clk 0:00:11]} 130. Rg4 {[%clk 0:00:08]}  Qe2+ {[%clk 0:00:11]} 131. Rg2 {[%clk 0:00:08]}  Qe5+ {[%clk 0:00:12]} 132. Kh1 {[%clk 0:00:09]}  Qe1+ {[%clk 0:00:12]} 133. Kh2 {[%clk 0:00:09]}  Qe5+ {[%clk 0:00:12]} 134. Kg1 {[%clk 0:00:09]}  Qe1+ {[%clk 0:00:12]} 135. Kh2 {[%clk 0:00:10]}  Qe5+ {[%clk 0:00:13]} 1/2-1/2


[Site "https://www.chess.com"]

[Event "Titled Tuesday Blitz June 14 Late 2022"]
[White "Trakru, Rohun"]
[Black "Bolanos, Fernando"]
[WhiteFideId "2097613"]
[BlackFideId "3304094"]
[WhiteElo "1746"]
[BlackElo "2048"]
[Result "1-0"]
[Round "07"]
[TimeControl "180+1"]
[Date "2022.06.15"]
[WhiteClock "0:00:03"]
[BlackClock "0:00:03"]

1. e4 {[%clk 0:03:00]}  c5 {[%clk 0:03:00]} 2. Nc3 {[%clk 0:03:00]}  Nc6 {[%clk 0:03:00]} 3. Bb5 {[%clk 0:03:00]}  e5 {[%clk 0:03:00]} 4. Bxc6 {[%clk 0:02:10]}  bxc6 {[%clk 0:02:57]} 5. d3 {[%clk 0:02:10]}  d6 {[%clk 0:02:58]} 6. f4 {[%clk 0:02:10]}  exf4 {[%clk 0:02:52]} 7. Bxf4 {[%clk 0:02:10]}  Nf6 {[%clk 0:02:51]} 8. Nf3 {[%clk 0:02:09]}  Be7 {[%clk 0:02:51]} 9. O-O {[%clk 0:02:09]}  O-O {[%clk 0:02:51]} 10. Qe2 {[%clk 0:02:03]}  Bg4 {[%clk 0:02:50]} 11. h3 {[%clk 0:02:02]}  Bh5 {[%clk 0:02:51]} 12. Rae1 {[%clk 0:01:52]}  Re8 {[%clk 0:02:47]} 13. Qf2 {[%clk 0:01:39]}  Qb6 {[%clk 0:02:25]} 14. b3 {[%clk 0:01:36]}  Rad8 {[%clk 0:02:15]} 15. e5 {[%clk 0:01:35]}  Nd5 {[%clk 0:02:08]} 16. Nxd5 {[%clk 0:01:31]}  cxd5 {[%clk 0:02:08]} 17. e6 {[%clk 0:00:56]}  Bf6 {[%clk 0:01:44]} 18. exf7+ {[%clk 0:00:48]}  Bxf7 {[%clk 0:01:45]} 19. Qg3 {[%clk 0:00:47]}  Qa5 {[%clk 0:01:22]} 20. Bxd6 {[%clk 0:00:24]}  Rxe1 {[%clk 0:01:15]} 21. Rxe1 {[%clk 0:00:23]}  Qxa2 {[%clk 0:01:05]} 22. Be7 {[%clk 0:00:21]}  Bxe7 {[%clk 0:00:43]} 23. Rxe7 {[%clk 0:00:22]}  Qxc2 {[%clk 0:00:30]} 24. Ne5 {[%clk 0:00:21]}  Rf8 {[%clk 0:00:14]} 25. Nd7 {[%clk 0:00:14]}  Re8 {[%clk 0:00:03]} 26. Nf6+ {[%clk 0:00:13]}  Kf8 {[%clk 0:00:03]} 27. Nxe8 {[%clk 0:00:09]}  Kxe7 {[%clk 0:00:03]} 28. Nxg7 {[%clk 0:00:08]}  Qxb3 {[%clk 0:00:03]} 29. Qe5+ {[%clk 0:00:04]}  Kf8 {[%clk 0:00:03]} 30. Nf5 {[%clk 0:00:04]}  Qb1+ {[%clk 0:00:03]} 31. Kh2 {[%clk 0:00:04]}  Qb7 {[%clk 0:00:02]} 32. Qd6+ {[%clk 0:00:04]}  Kg8 {[%clk 0:00:02]} 33. Qxc5 {[%clk 0:00:03]}  h5 {[%clk 0:00:01]} 34. Qe3 {[%clk 0:00:02]}  Qc7+ {[%clk 0:00:01]} 35. Kg1 {[%clk 0:00:02]}  a5 {[%clk 0:00:02]} 36. Qg5+ {[%clk 0:00:02]}  Kf8 {[%clk 0:00:03]} 37. Qg7+ {[%clk 0:00:02]}  Ke8 {[%clk 0:00:03]} 38. Qh8+ {[%clk 0:00:02]}  Kd7 {[%clk 0:00:03]} 39. Qf6 {[%clk 0:00:03]}  Kc8 {[%clk 0:00:03]} 40. Ne7+ {[%clk 0:00:03]}  Kd8 {[%clk 0:00:04]} 41. Nxd5+ {[%clk 0:00:02]}  Kd7 {[%clk 0:00:03]} 42. Nxc7 {[%clk 0:00:03]} 1-0


[Site "https://www.chess.com"]

[Event "Titled Tuesday Blitz June 14 Late 2022"]
[White "Tymrakiewicz, Rafal"]
[Black "Tanenbaum, Zachary"]
[WhiteFideId "1108832"]
[BlackFideId "2060850"]
[WhiteElo "2205"]
[BlackElo "2175"]
[Result "0-1"]
[Round "07"]
[TimeControl "180+1"]
[Date "2022.06.14"]
[WhiteClock "0:00:20"]
[BlackClock "0:00:57"]

1. d4 {[%clk 0:03:00]}  d5 {[%clk 0:02:58]} 2. Bg5 {[%clk 0:03:01]}  Nf6 {[%clk 0:02:55]} 3. e3 {[%clk 0:03:01]}  Bf5 {[%clk 0:02:49]} 4. Bd3 {[%clk 0:02:57]}  Bg6 {[%clk 0:02:47]} 5. Nf3 {[%clk 0:02:49]}  Nbd7 {[%clk 0:02:46]} 6. O-O {[%clk 0:02:46]}  e6 {[%clk 0:02:45]} 7. c4 {[%clk 0:02:47]}  c6 {[%clk 0:02:43]} 8. Nc3 {[%clk 0:02:44]}  Bd6 {[%clk 0:02:42]} 9. Qe2 {[%clk 0:02:34]}  O-O {[%clk 0:02:36]} 10. Rad1 {[%clk 0:02:27]}  Qc7 {[%clk 0:02:17]} 11. Bxg6 {[%clk 0:02:23]}  hxg6 {[%clk 0:02:16]} 12. c5 {[%clk 0:02:23]}  Be7 {[%clk 0:02:15]} 13. Bf4 {[%clk 0:02:23]}  Qc8 {[%clk 0:02:14]} 14. h3 {[%clk 0:02:23]}  Bd8 {[%clk 0:02:15]} 15. b4 {[%clk 0:02:20]}  Bc7 {[%clk 0:02:14]} 16. a4 {[%clk 0:02:18]}  Re8 {[%clk 0:02:13]} 17. Bxc7 {[%clk 0:02:09]}  Qxc7 {[%clk 0:02:14]} 18. b5 {[%clk 0:02:10]}  e5 {[%clk 0:02:12]} 19. Rb1 {[%clk 0:02:05]}  exd4 {[%clk 0:01:53]} 20. Nxd4 {[%clk 0:02:01]}  Nxc5 {[%clk 0:01:54]} 21. bxc6 {[%clk 0:01:59]}  bxc6 {[%clk 0:01:54]} 22. Rfc1 {[%clk 0:01:59]}  Ne6 {[%clk 0:01:55]} 23. Ncb5 {[%clk 0:01:50]}  Nxd4 {[%clk 0:01:53]} 24. Nxd4 {[%clk 0:01:50]}  c5 {[%clk 0:01:49]} 25. Nb3 {[%clk 0:01:30]}  c4 {[%clk 0:01:39]} 26. Nd4 {[%clk 0:01:31]}  Rab8 {[%clk 0:01:31]} 27. Rb5 {[%clk 0:01:28]}  a6 {[%clk 0:01:29]} 28. Rxb8 {[%clk 0:01:06]}  Rxb8 {[%clk 0:01:29]} 29. f3 {[%clk 0:01:07]}  Qe5 {[%clk 0:01:05]} 30. Nc6 {[%clk 0:00:44]}  Qb2 {[%clk 0:01:04]} 31. Rc2 {[%clk 0:00:43]}  Qa1+ {[%clk 0:01:04]} 32. Kh2 {[%clk 0:00:42]}  Rb1 {[%clk 0:01:03]} 33. Ra2 {[%clk 0:00:26]}  Rh1+ {[%clk 0:01:00]} 34. Kg3 {[%clk 0:00:25]}  Nh5+ {[%clk 0:00:59]} 35. Kf2 {[%clk 0:00:20]}  Qg1# {[%clk 0:00:57]} 0-1


[Site "https://www.chess.com"]

[Event "Titled Tuesday Blitz June 14 Late 2022"]
[White "Urbina Perez, Juan Antonio"]
[Black "Mammadova, Gulnar"]
[WhiteFideId "2217368"]
[BlackFideId "13403508"]
[WhiteElo "2192"]
[BlackElo "2255"]
[Result "0-1"]
[Round "07"]
[TimeControl "180+1"]
[Date "2022.06.15"]
[WhiteClock "0:00:01"]
[BlackClock "0:00:11"]

1. Nf3 {[%clk 0:03:00]}  Nf6 {[%clk 0:02:59]} 2. e3 {[%clk 0:03:01]}  g6 {[%clk 0:02:59]} 3. d4 {[%clk 0:02:57]}  Bg7 {[%clk 0:02:59]} 4. Be2 {[%clk 0:02:57]}  d6 {[%clk 0:02:59]} 5. O-O {[%clk 0:02:58]}  O-O {[%clk 0:02:59]} 6. c4 {[%clk 0:02:59]}  b6 {[%clk 0:03:00]} 7. Nc3 {[%clk 0:02:56]}  Bb7 {[%clk 0:03:01]} 8. d5 {[%clk 0:02:57]}  Nbd7 {[%clk 0:03:00]} 9. e4 {[%clk 0:02:53]}  e5 {[%clk 0:03:00]} 10. Be3 {[%clk 0:02:48]}  Ng4 {[%clk 0:02:59]} 11. Bg5 {[%clk 0:02:48]}  f6 {[%clk 0:02:59]} 12. Bh4 {[%clk 0:02:46]}  g5 {[%clk 0:02:59]} 13. Bg3 {[%clk 0:02:45]}  h5 {[%clk 0:02:58]} 14. h3 {[%clk 0:02:38]}  Nh6 {[%clk 0:02:58]} 15. Nd2 {[%clk 0:02:36]}  h4 {[%clk 0:02:28]} 16. Bh2 {[%clk 0:02:34]}  a5 {[%clk 0:02:29]} 17. a3 {[%clk 0:02:32]}  Qe7 {[%clk 0:02:27]} 18. Rb1 {[%clk 0:02:30]}  Rf7 {[%clk 0:02:18]} 19. Bh5 {[%clk 0:02:27]}  Rff8 {[%clk 0:02:17]} 20. b4 {[%clk 0:02:27]}  axb4 {[%clk 0:02:12]} 21. axb4 {[%clk 0:02:27]}  Bc8 {[%clk 0:02:12]} 22. Nb5 {[%clk 0:02:14]}  Nb8 {[%clk 0:02:10]} 23. Qc2 {[%clk 0:02:05]}  f5 {[%clk 0:02:10]} 24. exf5 {[%clk 0:02:04]}  Bxf5 {[%clk 0:02:10]} 25. Ne4 {[%clk 0:02:03]}  Nd7 {[%clk 0:02:07]} 26. Be2 {[%clk 0:01:55]}  Nf6 {[%clk 0:01:58]} 27. Bd3 {[%clk 0:01:53]}  Bxe4 {[%clk 0:01:54]} 28. Bxe4 {[%clk 0:01:54]}  g4 {[%clk 0:01:54]} 29. hxg4 {[%clk 0:01:50]}  Nfxg4 {[%clk 0:01:51]} 30. c5 {[%clk 0:01:42]}  bxc5 {[%clk 0:01:48]} 31. bxc5 {[%clk 0:01:43]}  Nxh2 {[%clk 0:01:46]} 32. Kxh2 {[%clk 0:01:40]}  Ng4+ {[%clk 0:01:46]} 33. Kg1 {[%clk 0:01:40]}  Rf6 {[%clk 0:01:14]} 34. cxd6 {[%clk 0:01:38]}  cxd6 {[%clk 0:01:15]} 35. Qc7 {[%clk 0:01:36]}  Re8 {[%clk 0:01:00]} 36. Qxe7 {[%clk 0:01:34]}  Rxe7 {[%clk 0:01:00]} 37. f3 {[%clk 0:01:32]}  Ne3 {[%clk 0:00:57]} 38. Rfe1 {[%clk 0:01:27]}  Nc4 {[%clk 0:00:56]} 39. Re2 {[%clk 0:01:21]}  h3 {[%clk 0:00:55]} 40. gxh3 {[%clk 0:01:12]}  Bh6 {[%clk 0:00:55]} 41. Rg2+ {[%clk 0:00:59]}  Kf8 {[%clk 0:00:52]} 42. Ra1 {[%clk 0:00:53]}  Nb6 {[%clk 0:00:41]} 43. Ra6 {[%clk 0:00:43]}  Ref7 {[%clk 0:00:23]} 44. Kf1 {[%clk 0:00:35]}  Nc4 {[%clk 0:00:23]} 45. Ra8+ {[%clk 0:00:31]}  Ke7 {[%clk 0:00:23]} 46. Ra7+ {[%clk 0:00:32]}  Kd8 {[%clk 0:00:20]} 47. Rxf7 {[%clk 0:00:29]}  Rxf7 {[%clk 0:00:20]} 48. Ke2 {[%clk 0:00:29]}  Ke7 {[%clk 0:00:19]} 49. Kd3 {[%clk 0:00:25]}  Na5 {[%clk 0:00:15]} 50. Rc2 {[%clk 0:00:16]}  Rf6 {[%clk 0:00:12]} 51. Rc7+ {[%clk 0:00:14]}  Kd8 {[%clk 0:00:13]} 52. Ra7 {[%clk 0:00:14]}  Nb3 {[%clk 0:00:13]} 53. Nc7 {[%clk 0:00:11]}  Nc5+ {[%clk 0:00:13]} 54. Kc4 {[%clk 0:00:11]}  Nxe4 {[%clk 0:00:13]} 55. fxe4 {[%clk 0:00:12]}  Rf3 {[%clk 0:00:13]} 56. Ne6+ {[%clk 0:00:12]}  Ke8 {[%clk 0:00:13]} 57. Rh7 {[%clk 0:00:11]}  Bd2 {[%clk 0:00:12]} 58. Rh8+ {[%clk 0:00:11]}  Ke7 {[%clk 0:00:12]} 59. Rh7+ {[%clk 0:00:10]}  Kf6 {[%clk 0:00:12]} 60. Rh8 {[%clk 0:00:09]}  Rc3+ {[%clk 0:00:12]} 61. Kb5 {[%clk 0:00:09]}  Re3 {[%clk 0:00:12]} 62. Rh6+ {[%clk 0:00:04]}  Kf7 {[%clk 0:00:12]} 63. Rh7+ {[%clk 0:00:04]}  Kg6 {[%clk 0:00:11]} 64. Rg7+ {[%clk 0:00:04]}  Kf6 {[%clk 0:00:11]} 65. Rg4 {[%clk 0:00:02]}  Rb3+ {[%clk 0:00:11]} 66. Kc6 {[%clk 0:00:01]}  Bb4 {[%clk 0:00:11]} 67. Kd7 {[%clk 0:00:01]}  Rxh3 {[%clk 0:00:11]} 0-1


[Site "https://www.chess.com"]